Workbook

Sheet Budget
A1: Month | B1: $ Budget
A2: January | B2: 2000
A3: February | B3: 1800
A4: March | B4: 2100
A5: April | B5: 2400
A6: May | B6: 1000
A7: June | B7: 1500
A8: July | B8: 1800
A9: August | B9: 2100
A10: September | B10: 2400
A11: October | B11: 1000
A12: November | B12: 2000
A13: December | B13: 1500

Sheet Spending
A1: Description | B1: Category | C1: $ Amount | D1: Payment Type | E1: Month
A2: Macy's | B2: Food | C2: 25.5 | D2: Debit | E2: February
A3: ESPN Insider Payment | B3: Misc | C3: 19.95 | D3: Visa | E3: July
A4: TGIF's Restaurant | B4: Eating Out | C4: 30 | D4: Visa | E4: May
A5: Maverik | B5: Gas | C5: 55 | D5: Debit | E5: June
A6: Verizon Phone Bill | B6: Phone | C6: 162 | D6: Visa | E6: February
A7: Chevron | B7: Gas | C7: 40 | D7: Visa | E7: April
A8: Power bill | B8: Utilities | C8: 35 | D8: Check | E8: January
A9: Gas Bill | B9: Utilities | C9: 35 | D9: Check | E9: February
A10: Golf | B10: Fun | C10: 20 | D10: Cash | E10: April
A11: The mall | B11: Misc | C11: 30 | D11: Cash | E11: June
A12: Tithing for March | B12: Tithing/FO | C12: 100 | D12: Check | E12: March
A13: Dad's Birthday Present | B13: Gifts | C13: 40 | D13: Debit | E13: August
A14: Doctor's Bill | B14: Medical | C14: 240 | D14: Visa | E14: September
A15: Savings Bond | B15: Savings | C15: 150 | D15: Check | E15: October
A16: Flight to Florida | B16: Fun | C16: 350 | D16: Visa | E16: November
A17: Christmas Gift for Rachel | B17: Gifts | C17: 50 | D17: Cash | E17: December

Sheet Monthly Summary (hidden)
A1: Month | B1: Fun | C1: Eating Out | D1: Tithing/FO | E1: Phone | F1: Medical | G1: Gas | H1: Utilities | I1: Food | J1: Misc | K1: Mark | L1: Rachel | M1: Home | N1: Savings | O1: Clothing | P1: School | Q1: Insurance | R1: Car | S1: Gifts | T1: Rent
A2: January | B2: =SUMIFS(Spending!$C:$C,Spending!$E:$E,'Monthly Summary'!$A2,Spending!$B:$B,'Monthly Summary'!B$1) -> 0 | C2: =SUMIFS(Spending!$C:$C,Spending!$E:$E,'Monthly Summary'!$A2,Spending!$B:$B,'Monthly Summary'!C$1) -> 0 | D2: =SUMIFS(Spending!$C:$C,Spending!$E:$E,'Monthly Summary'!$A2,Spending!$B:$B,'Monthly Summary'!D$1) -> 0 | E2: =SUMIFS(Spending!$C:$C,Spending!$E:$E,'Monthly Summary'!$A2,Spending!$B:$B,'Monthly Summary'!E$1) -> 0 | F2: =SUMIFS(Spending!$C:$C,Spending!$E:$E,'Monthly Summary'!$A2,Spending!$B:$B,'Monthly Summary'!F$1) -> 0 | G2: =SUMIFS(Spending!$C:$C,Spending!$E:$E,'Monthly Summary'!$A2,Spending!$B:$B,'Monthly Summary'!G$1) -> 0 | H2: =SUMIFS(Spending!$C:$C,Spending!$E:$E,'Monthly Summary'!$A2,Spending!$B:$B,'Monthly Summary'!H$1) -> 35 | I2: =SUMIFS(Spending!$C:$C,Spending!$E:$E,'Monthly Summary'!$A2,Spending!$B:$B,'Monthly Summary'!I$1) -> 0 | J2: =SUMIFS(Spending!$C:$C,Spending!$E:$E,'Monthly Summary'!$A2,Spending!$B:$B,'Monthly Summary'!J$1) -> 0 | K2: =SUMIFS(Spending!$C:$C,Spending!$E:$E,'Monthly Summary'!$A2,Spending!$B:$B,'Monthly Summary'!K$1) -> 0 | L2: =SUMIFS(Spending!$C:$C,Spending!$E:$E,'Monthly Summary'!$A2,Spending!$B:$B,'Monthly Summary'!L$1) -> 0 | M2: =SUMIFS(Spending!$C:$C,Spending!$E:$E,'Monthly Summary'!$A2,Spending!$B:$B,'Monthly Summary'!M$1) -> 0 | N2: =SUMIFS(Spending!$C:$C,Spending!$E:$E,'Monthly Summary'!$A2,Spending!$B:$B,'Monthly Summary'!N$1) -> 0 | O2: =SUMIFS(Spending!$C:$C,Spending!$E:$E,'Monthly Summary'!$A2,Spending!$B:$B,'Monthly Summary'!O$1) -> 0 | P2: =SUMIFS(Spending!$C:$C,Spending!$E:$E,'Monthly Summary'!$A2,Spending!$B:$B,'Monthly Summary'!P$1) -> 0 | Q2: =SUMIFS(Spending!$C:$C,Spending!$E:$E,'Monthly Summary'!$A2,Spending!$B:$B,'Monthly Summary'!Q$1) -> 0 | R2: =SUMIFS(Spending!$C:$C,Spending!$E:$E,'Monthly Summary'!$A2,Spending!$B:$B,'Monthly Summary'!R$1) -> 0 | S2: =SUMIFS(Spending!$C:$C,Spending!$E:$E,'Monthly Summary'!$A2,Spending!$B:$B,'Monthly Summary'!S$1) -> 0 | T2: =SUMIFS(Spending!$C:$C,Spending!$E:$E,'Monthly Summary'!$A2,Spending!$B:$B,'Monthly Summary'!T$1) -> 0
A3: February | B3: =SUMIFS(Spending!$C:$C,Spending!$E:$E,'Monthly Summary'!$A3,Spending!$B:$B,'Monthly Summary'!B$1) -> 0 | C3: =SUMIFS(Spending!$C:$C,Spending!$E:$E,'Monthly Summary'!$A3,Spending!$B:$B,'Monthly Summary'!C$1) -> 0 | D3: =SUMIFS(Spending!$C:$C,Spending!$E:$E,'Monthly Summary'!$A3,Spending!$B:$B,'Monthly Summary'!D$1) -> 0 | E3: =SUMIFS(Spending!$C:$C,Spending!$E:$E,'Monthly Summary'!$A3,Spending!$B:$B,'Monthly Summary'!E$1) -> 162 | F3: =SUMIFS(Spending!$C:$C,Spending!$E:$E,'Monthly Summary'!$A3,Spending!$B:$B,'Monthly Summary'!F$1) -> 0 | G3: =SUMIFS(Spending!$C:$C,Spending!$E:$E,'Monthly Summary'!$A3,Spending!$B:$B,'Monthly Summary'!G$1) -> 0 | H3: =SUMIFS(Spending!$C:$C,Spending!$E:$E,'Monthly Summary'!$A3,Spending!$B:$B,'Monthly Summary'!H$1) -> 35 | I3: =SUMIFS(Spending!$C:$C,Spending!$E:$E,'Monthly Summary'!$A3,Spending!$B:$B,'Monthly Summary'!I$1) -> 25.5 | J3: =SUMIFS(Spending!$C:$C,Spending!$E:$E,'Monthly Summary'!$A3,Spending!$B:$B,'Monthly Summary'!J$1) -> 0 | K3: =SUMIFS(Spending!$C:$C,Spending!$E:$E,'Monthly Summary'!$A3,Spending!$B:$B,'Monthly Summary'!K$1) -> 0 | L3: =SUMIFS(Spending!$C:$C,Spending!$E:$E,'Monthly Summary'!$A3,Spending!$B:$B,'Monthly Summary'!L$1) -> 0 | M3: =SUMIFS(Spending!$C:$C,Spending!$E:$E,'Monthly Summary'!$A3,Spending!$B:$B,'Monthly Summary'!M$1) -> 0 | N3: =SUMIFS(Spending!$C:$C,Spending!$E:$E,'Monthly Summary'!$A3,Spending!$B:$B,'Monthly Summary'!N$1) -> 0 | O3: =SUMIFS(Spending!$C:$C,Spending!$E:$E,'Monthly Summary'!$A3,Spending!$B:$B,'Monthly Summary'!O$1) -> 0 | P3: =SUMIFS(Spending!$C:$C,Spending!$E:$E,'Monthly Summary'!$A3,Spending!$B:$B,'Monthly Summary'!P$1) -> 0 | Q3: =SUMIFS(Spending!$C:$C,Spending!$E:$E,'Monthly Summary'!$A3,Spending!$B:$B,'Monthly Summary'!Q$1) -> 0 | R3: =SUMIFS(Spending!$C:$C,Spending!$E:$E,'Monthly Summary'!$A3,Spending!$B:$B,'Monthly Summary'!R$1) -> 0 | S3: =SUMIFS(Spending!$C:$C,Spending!$E:$E,'Monthly Summary'!$A3,Spending!$B:$B,'Monthly Summary'!S$1) -> 0 | T3: =SUMIFS(Spending!$C:$C,Spending!$E:$E,'Monthly Summary'!$A3,Spending!$B:$B,'Monthly Summary'!T$1) -> 0
A4: March | B4: =SUMIFS(Spending!$C:$C,Spending!$E:$E,'Monthly Summary'!$A4,Spending!$B:$B,'Monthly Summary'!B$1) -> 0 | C4: =SUMIFS(Spending!$C:$C,Spending!$E:$E,'Monthly Summary'!$A4,Spending!$B:$B,'Monthly Summary'!C$1) -> 0 | D4: =SUMIFS(Spending!$C:$C,Spending!$E:$E,'Monthly Summary'!$A4,Spending!$B:$B,'Monthly Summary'!D$1) -> 100 | E4: =SUMIFS(Spending!$C:$C,Spending!$E:$E,'Monthly Summary'!$A4,Spending!$B:$B,'Monthly Summary'!E$1) -> 0 | F4: =SUMIFS(Spending!$C:$C,Spending!$E:$E,'Monthly Summary'!$A4,Spending!$B:$B,'Monthly Summary'!F$1) -> 0 | G4: =SUMIFS(Spending!$C:$C,Spending!$E:$E,'Monthly Summary'!$A4,Spending!$B:$B,'Monthly Summary'!G$1) -> 0 | H4: =SUMIFS(Spending!$C:$C,Spending!$E:$E,'Monthly Summary'!$A4,Spending!$B:$B,'Monthly Summary'!H$1) -> 0 | I4: =SUMIFS(Spending!$C:$C,Spending!$E:$E,'Monthly Summary'!$A4,Spending!$B:$B,'Monthly Summary'!I$1) -> 0 | J4: =SUMIFS(Spending!$C:$C,Spending!$E:$E,'Monthly Summary'!$A4,Spending!$B:$B,'Monthly Summary'!J$1) -> 0 | K4: =SUMIFS(Spending!$C:$C,Spending!$E:$E,'Monthly Summary'!$A4,Spending!$B:$B,'Monthly Summary'!K$1) -> 0 | L4: =SUMIFS(Spending!$C:$C,Spending!$E:$E,'Monthly Summary'!$A4,Spending!$B:$B,'Monthly Summary'!L$1) -> 0 | M4: =SUMIFS(Spending!$C:$C,Spending!$E:$E,'Monthly Summary'!$A4,Spending!$B:$B,'Monthly Summary'!M$1) -> 0 | N4: =SUMIFS(Spending!$C:$C,Spending!$E:$E,'Monthly Summary'!$A4,Spending!$B:$B,'Monthly Summary'!N$1) -> 0 | O4: =SUMIFS(Spending!$C:$C,Spending!$E:$E,'Monthly Summary'!$A4,Spending!$B:$B,'Monthly Summary'!O$1) -> 0 | P4: =SUMIFS(Spending!$C:$C,Spending!$E:$E,'Monthly Summary'!$A4,Spending!$B:$B,'Monthly Summary'!P$1) -> 0 | Q4: =SUMIFS(Spending!$C:$C,Spending!$E:$E,'Monthly Summary'!$A4,Spending!$B:$B,'Monthly Summary'!Q$1) -> 0 | R4: =SUMIFS(Spending!$C:$C,Spending!$E:$E,'Monthly Summary'!$A4,Spending!$B:$B,'Monthly Summary'!R$1) -> 0 | S4: =SUMIFS(Spending!$C:$C,Spending!$E:$E,'Monthly Summary'!$A4,Spending!$B:$B,'Monthly Summary'!S$1) -> 0 | T4: =SUMIFS(Spending!$C:$C,Spending!$E:$E,'Monthly Summary'!$A4,Spending!$B:$B,'Monthly Summary'!T$1) -> 0
A5: April | B5: =SUMIFS(Spending!$C:$C,Spending!$E:$E,'Monthly Summary'!$A5,Spending!$B:$B,'Monthly Summary'!B$1) -> 20 | C5: =SUMIFS(Spending!$C:$C,Spending!$E:$E,'Monthly Summary'!$A5,Spending!$B:$B,'Monthly Summary'!C$1) -> 0 | D5: =SUMIFS(Spending!$C:$C,Spending!$E:$E,'Monthly Summary'!$A5,Spending!$B:$B,'Monthly Summary'!D$1) -> 0 | E5: =SUMIFS(Spending!$C:$C,Spending!$E:$E,'Monthly Summary'!$A5,Spending!$B:$B,'Monthly Summary'!E$1) -> 0 | F5: =SUMIFS(Spending!$C:$C,Spending!$E:$E,'Monthly Summary'!$A5,Spending!$B:$B,'Monthly Summary'!F$1) -> 0 | G5: =SUMIFS(Spending!$C:$C,Spending!$E:$E,'Monthly Summary'!$A5,Spending!$B:$B,'Monthly Summary'!G$1) -> 40 | H5: =SUMIFS(Spending!$C:$C,Spending!$E:$E,'Monthly Summary'!$A5,Spending!$B:$B,'Monthly Summary'!H$1) -> 0 | I5: =SUMIFS(Spending!$C:$C,Spending!$E:$E,'Monthly Summary'!$A5,Spending!$B:$B,'Monthly Summary'!I$1) -> 0 | J5: =SUMIFS(Spending!$C:$C,Spending!$E:$E,'Monthly Summary'!$A5,Spending!$B:$B,'Monthly Summary'!J$1) -> 0 | K5: =SUMIFS(Spending!$C:$C,Spending!$E:$E,'Monthly Summary'!$A5,Spending!$B:$B,'Monthly Summary'!K$1) -> 0 | L5: =SUMIFS(Spending!$C:$C,Spending!$E:$E,'Monthly Summary'!$A5,Spending!$B:$B,'Monthly Summary'!L$1) -> 0 | M5: =SUMIFS(Spending!$C:$C,Spending!$E:$E,'Monthly Summary'!$A5,Spending!$B:$B,'Monthly Summary'!M$1) -> 0 | N5: =SUMIFS(Spending!$C:$C,Spending!$E:$E,'Monthly Summary'!$A5,Spending!$B:$B,'Monthly Summary'!N$1) -> 0 | O5: =SUMIFS(Spending!$C:$C,Spending!$E:$E,'Monthly Summary'!$A5,Spending!$B:$B,'Monthly Summary'!O$1) -> 0 | P5: =SUMIFS(Spending!$C:$C,Spending!$E:$E,'Monthly Summary'!$A5,Spending!$B:$B,'Monthly Summary'!P$1) -> 0 | Q5: =SUMIFS(Spending!$C:$C,Spending!$E:$E,'Monthly Summary'!$A5,Spending!$B:$B,'Monthly Summary'!Q$1) -> 0 | R5: =SUMIFS(Spending!$C:$C,Spending!$E:$E,'Monthly Summary'!$A5,Spending!$B:$B,'Monthly Summary'!R$1) -> 0 | S5: =SUMIFS(Spending!$C:$C,Spending!$E:$E,'Monthly Summary'!$A5,Spending!$B:$B,'Monthly Summary'!S$1) -> 0 | T5: =SUMIFS(Spending!$C:$C,Spending!$E:$E,'Monthly Summary'!$A5,Spending!$B:$B,'Monthly Summary'!T$1) -> 0
A6: May | B6: =SUMIFS(Spending!$C:$C,Spending!$E:$E,'Monthly Summary'!$A6,Spending!$B:$B,'Monthly Summary'!B$1) -> 0 | C6: =SUMIFS(Spending!$C:$C,Spending!$E:$E,'Monthly Summary'!$A6,Spending!$B:$B,'Monthly Summary'!C$1) -> 30 | D6: =SUMIFS(Spending!$C:$C,Spending!$E:$E,'Monthly Summary'!$A6,Spending!$B:$B,'Monthly Summary'!D$1) -> 0 | E6: =SUMIFS(Spending!$C:$C,Spending!$E:$E,'Monthly Summary'!$A6,Spending!$B:$B,'Monthly Summary'!E$1) -> 0 | F6: =SUMIFS(Spending!$C:$C,Spending!$E:$E,'Monthly Summary'!$A6,Spending!$B:$B,'Monthly Summary'!F$1) -> 0 | G6: =SUMIFS(Spending!$C:$C,Spending!$E:$E,'Monthly Summary'!$A6,Spending!$B:$B,'Monthly Summary'!G$1) -> 0 | H6: =SUMIFS(Spending!$C:$C,Spending!$E:$E,'Monthly Summary'!$A6,Spending!$B:$B,'Monthly Summary'!H$1) -> 0 | I6: =SUMIFS(Spending!$C:$C,Spending!$E:$E,'Monthly Summary'!$A6,Spending!$B:$B,'Monthly Summary'!I$1) -> 0 | J6: =SUMIFS(Spending!$C:$C,Spending!$E:$E,'Monthly Summary'!$A6,Spending!$B:$B,'Monthly Summary'!J$1) -> 0 | K6: =SUMIFS(Spending!$C:$C,Spending!$E:$E,'Monthly Summary'!$A6,Spending!$B:$B,'Monthly Summary'!K$1) -> 0 | L6: =SUMIFS(Spending!$C:$C,Spending!$E:$E,'Monthly Summary'!$A6,Spending!$B:$B,'Monthly Summary'!L$1) -> 0 | M6: =SUMIFS(Spending!$C:$C,Spending!$E:$E,'Monthly Summary'!$A6,Spending!$B:$B,'Monthly Summary'!M$1) -> 0 | N6: =SUMIFS(Spending!$C:$C,Spending!$E:$E,'Monthly Summary'!$A6,Spending!$B:$B,'Monthly Summary'!N$1) -> 0 | O6: =SUMIFS(Spending!$C:$C,Spending!$E:$E,'Monthly Summary'!$A6,Spending!$B:$B,'Monthly Summary'!O$1) -> 0 | P6: =SUMIFS(Spending!$C:$C,Spending!$E:$E,'Monthly Summary'!$A6,Spending!$B:$B,'Monthly Summary'!P$1) -> 0 | Q6: =SUMIFS(Spending!$C:$C,Spending!$E:$E,'Monthly Summary'!$A6,Spending!$B:$B,'Monthly Summary'!Q$1) -> 0 | R6: =SUMIFS(Spending!$C:$C,Spending!$E:$E,'Monthly Summary'!$A6,Spending!$B:$B,'Monthly Summary'!R$1) -> 0 | S6: =SUMIFS(Spending!$C:$C,Spending!$E:$E,'Monthly Summary'!$A6,Spending!$B:$B,'Monthly Summary'!S$1) -> 0 | T6: =SUMIFS(Spending!$C:$C,Spending!$E:$E,'Monthly Summary'!$A6,Spending!$B:$B,'Monthly Summary'!T$1) -> 0
A7: June | B7: =SUMIFS(Spending!$C:$C,Spending!$E:$E,'Monthly Summary'!$A7,Spending!$B:$B,'Monthly Summary'!B$1) -> 0 | C7: =SUMIFS(Spending!$C:$C,Spending!$E:$E,'Monthly Summary'!$A7,Spending!$B:$B,'Monthly Summary'!C$1) -> 0 | D7: =SUMIFS(Spending!$C:$C,Spending!$E:$E,'Monthly Summary'!$A7,Spending!$B:$B,'Monthly Summary'!D$1) -> 0 | E7: =SUMIFS(Spending!$C:$C,Spending!$E:$E,'Monthly Summary'!$A7,Spending!$B:$B,'Monthly Summary'!E$1) -> 0 | F7: =SUMIFS(Spending!$C:$C,Spending!$E:$E,'Monthly Summary'!$A7,Spending!$B:$B,'Monthly Summary'!F$1) -> 0 | G7: =SUMIFS(Spending!$C:$C,Spending!$E:$E,'Monthly Summary'!$A7,Spending!$B:$B,'Monthly Summary'!G$1) -> 55 | H7: =SUMIFS(Spending!$C:$C,Spending!$E:$E,'Monthly Summary'!$A7,Spending!$B:$B,'Monthly Summary'!H$1) -> 0 | I7: =SUMIFS(Spending!$C:$C,Spending!$E:$E,'Monthly Summary'!$A7,Spending!$B:$B,'Monthly Summary'!I$1) -> 0 | J7: =SUMIFS(Spending!$C:$C,Spending!$E:$E,'Monthly Summary'!$A7,Spending!$B:$B,'Monthly Summary'!J$1) -> 30 | K7: =SUMIFS(Spending!$C:$C,Spending!$E:$E,'Monthly Summary'!$A7,Spending!$B:$B,'Monthly Summary'!K$1) -> 0 | L7: =SUMIFS(Spending!$C:$C,Spending!$E:$E,'Monthly Summary'!$A7,Spending!$B:$B,'Monthly Summary'!L$1) -> 0 | M7: =SUMIFS(Spending!$C:$C,Spending!$E:$E,'Monthly Summary'!$A7,Spending!$B:$B,'Monthly Summary'!M$1) -> 0 | N7: =SUMIFS(Spending!$C:$C,Spending!$E:$E,'Monthly Summary'!$A7,Spending!$B:$B,'Monthly Summary'!N$1) -> 0 | O7: =SUMIFS(Spending!$C:$C,Spending!$E:$E,'Monthly Summary'!$A7,Spending!$B:$B,'Monthly Summary'!O$1) -> 0 | P7: =SUMIFS(Spending!$C:$C,Spending!$E:$E,'Monthly Summary'!$A7,Spending!$B:$B,'Monthly Summary'!P$1) -> 0 | Q7: =SUMIFS(Spending!$C:$C,Spending!$E:$E,'Monthly Summary'!$A7,Spending!$B:$B,'Monthly Summary'!Q$1) -> 0 | R7: =SUMIFS(Spending!$C:$C,Spending!$E:$E,'Monthly Summary'!$A7,Spending!$B:$B,'Monthly Summary'!R$1) -> 0 | S7: =SUMIFS(Spending!$C:$C,Spending!$E:$E,'Monthly Summary'!$A7,Spending!$B:$B,'Monthly Summary'!S$1) -> 0 | T7: =SUMIFS(Spending!$C:$C,Spending!$E:$E,'Monthly Summary'!$A7,Spending!$B:$B,'Monthly Summary'!T$1) -> 0
A8: July | B8: =SUMIFS(Spending!$C:$C,Spending!$E:$E,'Monthly Summary'!$A8,Spending!$B:$B,'Monthly Summary'!B$1) -> 0 | C8: =SUMIFS(Spending!$C:$C,Spending!$E:$E,'Monthly Summary'!$A8,Spending!$B:$B,'Monthly Summary'!C$1) -> 0 | D8: =SUMIFS(Spending!$C:$C,Spending!$E:$E,'Monthly Summary'!$A8,Spending!$B:$B,'Monthly Summary'!D$1) -> 0 | E8: =SUMIFS(Spending!$C:$C,Spending!$E:$E,'Monthly Summary'!$A8,Spending!$B:$B,'Monthly Summary'!E$1) -> 0 | F8: =SUMIFS(Spending!$C:$C,Spending!$E:$E,'Monthly Summary'!$A8,Spending!$B:$B,'Monthly Summary'!F$1) -> 0 | G8: =SUMIFS(Spending!$C:$C,Spending!$E:$E,'Monthly Summary'!$A8,Spending!$B:$B,'Monthly Summary'!G$1) -> 0 | H8: =SUMIFS(Spending!$C:$C,Spending!$E:$E,'Monthly Summary'!$A8,Spending!$B:$B,'Monthly Summary'!H$1) -> 0 | I8: =SUMIFS(Spending!$C:$C,Spending!$E:$E,'Monthly Summary'!$A8,Spending!$B:$B,'Monthly Summary'!I$1) -> 0 | J8: =SUMIFS(Spending!$C:$C,Spending!$E:$E,'Monthly Summary'!$A8,Spending!$B:$B,'Monthly Summary'!J$1) -> 19.95 | K8: =SUMIFS(Spending!$C:$C,Spending!$E:$E,'Monthly Summary'!$A8,Spending!$B:$B,'Monthly Summary'!K$1) -> 0 | L8: =SUMIFS(Spending!$C:$C,Spending!$E:$E,'Monthly Summary'!$A8,Spending!$B:$B,'Monthly Summary'!L$1) -> 0 | M8: =SUMIFS(Spending!$C:$C,Spending!$E:$E,'Monthly Summary'!$A8,Spending!$B:$B,'Monthly Summary'!M$1) -> 0 | N8: =SUMIFS(Spending!$C:$C,Spending!$E:$E,'Monthly Summary'!$A8,Spending!$B:$B,'Monthly Summary'!N$1) -> 0 | O8: =SUMIFS(Spending!$C:$C,Spending!$E:$E,'Monthly Summary'!$A8,Spending!$B:$B,'Monthly Summary'!O$1) -> 0 | P8: =SUMIFS(Spending!$C:$C,Spending!$E:$E,'Monthly Summary'!$A8,Spending!$B:$B,'Monthly Summary'!P$1) -> 0 | Q8: =SUMIFS(Spending!$C:$C,Spending!$E:$E,'Monthly Summary'!$A8,Spending!$B:$B,'Monthly Summary'!Q$1) -> 0 | R8: =SUMIFS(Spending!$C:$C,Spending!$E:$E,'Monthly Summary'!$A8,Spending!$B:$B,'Monthly Summary'!R$1) -> 0 | S8: =SUMIFS(Spending!$C:$C,Spending!$E:$E,'Monthly Summary'!$A8,Spending!$B:$B,'Monthly Summary'!S$1) -> 0 | T8: =SUMIFS(Spending!$C:$C,Spending!$E:$E,'Monthly Summary'!$A8,Spending!$B:$B,'Monthly Summary'!T$1) -> 0
A9: August | B9: =SUMIFS(Spending!$C:$C,Spending!$E:$E,'Monthly Summary'!$A9,Spending!$B:$B,'Monthly Summary'!B$1) -> 0 | C9: =SUMIFS(Spending!$C:$C,Spending!$E:$E,'Monthly Summary'!$A9,Spending!$B:$B,'Monthly Summary'!C$1) -> 0 | D9: =SUMIFS(Spending!$C:$C,Spending!$E:$E,'Monthly Summary'!$A9,Spending!$B:$B,'Monthly Summary'!D$1) -> 0 | E9: =SUMIFS(Spending!$C:$C,Spending!$E:$E,'Monthly Summary'!$A9,Spending!$B:$B,'Monthly Summary'!E$1) -> 0 | F9: =SUMIFS(Spending!$C:$C,Spending!$E:$E,'Monthly Summary'!$A9,Spending!$B:$B,'Monthly Summary'!F$1) -> 0 | G9: =SUMIFS(Spending!$C:$C,Spending!$E:$E,'Monthly Summary'!$A9,Spending!$B:$B,'Monthly Summary'!G$1) -> 0 | H9: =SUMIFS(Spending!$C:$C,Spending!$E:$E,'Monthly Summary'!$A9,Spending!$B:$B,'Monthly Summary'!H$1) -> 0 | I9: =SUMIFS(Spending!$C:$C,Spending!$E:$E,'Monthly Summary'!$A9,Spending!$B:$B,'Monthly Summary'!I$1) -> 0 | J9: =SUMIFS(Spending!$C:$C,Spending!$E:$E,'Monthly Summary'!$A9,Spending!$B:$B,'Monthly Summary'!J$1) -> 0 | K9: =SUMIFS(Spending!$C:$C,Spending!$E:$E,'Monthly Summary'!$A9,Spending!$B:$B,'Monthly Summary'!K$1) -> 0 | L9: =SUMIFS(Spending!$C:$C,Spending!$E:$E,'Monthly Summary'!$A9,Spending!$B:$B,'Monthly Summary'!L$1) -> 0 | M9: =SUMIFS(Spending!$C:$C,Spending!$E:$E,'Monthly Summary'!$A9,Spending!$B:$B,'Monthly Summary'!M$1) -> 0 | N9: =SUMIFS(Spending!$C:$C,Spending!$E:$E,'Monthly Summary'!$A9,Spending!$B:$B,'Monthly Summary'!N$1) -> 0 | O9: =SUMIFS(Spending!$C:$C,Spending!$E:$E,'Monthly Summary'!$A9,Spending!$B:$B,'Monthly Summary'!O$1) -> 0 | P9: =SUMIFS(Spending!$C:$C,Spending!$E:$E,'Monthly Summary'!$A9,Spending!$B:$B,'Monthly Summary'!P$1) -> 0 | Q9: =SUMIFS(Spending!$C:$C,Spending!$E:$E,'Monthly Summary'!$A9,Spending!$B:$B,'Monthly Summary'!Q$1) -> 0 | R9: =SUMIFS(Spending!$C:$C,Spending!$E:$E,'Monthly Summary'!$A9,Spending!$B:$B,'Monthly Summary'!R$1) -> 0 | S9: =SUMIFS(Spending!$C:$C,Spending!$E:$E,'Monthly Summary'!$A9,Spending!$B:$B,'Monthly Summary'!S$1) -> 40 | T9: =SUMIFS(Spending!$C:$C,Spending!$E:$E,'Monthly Summary'!$A9,Spending!$B:$B,'Monthly Summary'!T$1) -> 0
A10: September | B10: =SUMIFS(Spending!$C:$C,Spending!$E:$E,'Monthly Summary'!$A10,Spending!$B:$B,'Monthly Summary'!B$1) -> 0 | C10: =SUMIFS(Spending!$C:$C,Spending!$E:$E,'Monthly Summary'!$A10,Spending!$B:$B,'Monthly Summary'!C$1) -> 0 | D10: =SUMIFS(Spending!$C:$C,Spending!$E:$E,'Monthly Summary'!$A10,Spending!$B:$B,'Monthly Summary'!D$1) -> 0 | E10: =SUMIFS(Spending!$C:$C,Spending!$E:$E,'Monthly Summary'!$A10,Spending!$B:$B,'Monthly Summary'!E$1) -> 0 | F10: =SUMIFS(Spending!$C:$C,Spending!$E:$E,'Monthly Summary'!$A10,Spending!$B:$B,'Monthly Summary'!F$1) -> 240 | G10: =SUMIFS(Spending!$C:$C,Spending!$E:$E,'Monthly Summary'!$A10,Spending!$B:$B,'Monthly Summary'!G$1) -> 0 | H10: =SUMIFS(Spending!$C:$C,Spending!$E:$E,'Monthly Summary'!$A10,Spending!$B:$B,'Monthly Summary'!H$1) -> 0 | I10: =SUMIFS(Spending!$C:$C,Spending!$E:$E,'Monthly Summary'!$A10,Spending!$B:$B,'Monthly Summary'!I$1) -> 0 | J10: =SUMIFS(Spending!$C:$C,Spending!$E:$E,'Monthly Summary'!$A10,Spending!$B:$B,'Monthly Summary'!J$1) -> 0 | K10: =SUMIFS(Spending!$C:$C,Spending!$E:$E,'Monthly Summary'!$A10,Spending!$B:$B,'Monthly Summary'!K$1) -> 0 | L10: =SUMIFS(Spending!$C:$C,Spending!$E:$E,'Monthly Summary'!$A10,Spending!$B:$B,'Monthly Summary'!L$1) -> 0 | M10: =SUMIFS(Spending!$C:$C,Spending!$E:$E,'Monthly Summary'!$A10,Spending!$B:$B,'Monthly Summary'!M$1) -> 0 | N10: =SUMIFS(Spending!$C:$C,Spending!$E:$E,'Monthly Summary'!$A10,Spending!$B:$B,'Monthly Summary'!N$1) -> 0 | O10: =SUMIFS(Spending!$C:$C,Spending!$E:$E,'Monthly Summary'!$A10,Spending!$B:$B,'Monthly Summary'!O$1) -> 0 | P10: =SUMIFS(Spending!$C:$C,Spending!$E:$E,'Monthly Summary'!$A10,Spending!$B:$B,'Monthly Summary'!P$1) -> 0 | Q10: =SUMIFS(Spending!$C:$C,Spending!$E:$E,'Monthly Summary'!$A10,Spending!$B:$B,'Monthly Summary'!Q$1) -> 0 | R10: =SUMIFS(Spending!$C:$C,Spending!$E:$E,'Monthly Summary'!$A10,Spending!$B:$B,'Monthly Summary'!R$1) -> 0 | S10: =SUMIFS(Spending!$C:$C,Spending!$E:$E,'Monthly Summary'!$A10,Spending!$B:$B,'Monthly Summary'!S$1) -> 0 | T10: =SUMIFS(Spending!$C:$C,Spending!$E:$E,'Monthly Summary'!$A10,Spending!$B:$B,'Monthly Summary'!T$1) -> 0
A11: October | B11: =SUMIFS(Spending!$C:$C,Spending!$E:$E,'Monthly Summary'!$A11,Spending!$B:$B,'Monthly Summary'!B$1) -> 0 | C11: =SUMIFS(Spending!$C:$C,Spending!$E:$E,'Monthly Summary'!$A11,Spending!$B:$B,'Monthly Summary'!C$1) -> 0 | D11: =SUMIFS(Spending!$C:$C,Spending!$E:$E,'Monthly Summary'!$A11,Spending!$B:$B,'Monthly Summary'!D$1) -> 0 | E11: =SUMIFS(Spending!$C:$C,Spending!$E:$E,'Monthly Summary'!$A11,Spending!$B:$B,'Monthly Summary'!E$1) -> 0 | F11: =SUMIFS(Spending!$C:$C,Spending!$E:$E,'Monthly Summary'!$A11,Spending!$B:$B,'Monthly Summary'!F$1) -> 0 | G11: =SUMIFS(Spending!$C:$C,Spending!$E:$E,'Monthly Summary'!$A11,Spending!$B:$B,'Monthly Summary'!G$1) -> 0 | H11: =SUMIFS(Spending!$C:$C,Spending!$E:$E,'Monthly Summary'!$A11,Spending!$B:$B,'Monthly Summary'!H$1) -> 0 | I11: =SUMIFS(Spending!$C:$C,Spending!$E:$E,'Monthly Summary'!$A11,Spending!$B:$B,'Monthly Summary'!I$1) -> 0 | J11: =SUMIFS(Spending!$C:$C,Spending!$E:$E,'Monthly Summary'!$A11,Spending!$B:$B,'Monthly Summary'!J$1) -> 0 | K11: =SUMIFS(Spending!$C:$C,Spending!$E:$E,'Monthly Summary'!$A11,Spending!$B:$B,'Monthly Summary'!K$1) -> 0 | L11: =SUMIFS(Spending!$C:$C,Spending!$E:$E,'Monthly Summary'!$A11,Spending!$B:$B,'Monthly Summary'!L$1) -> 0 | M11: =SUMIFS(Spending!$C:$C,Spending!$E:$E,'Monthly Summary'!$A11,Spending!$B:$B,'Monthly Summary'!M$1) -> 0 | N11: =SUMIFS(Spending!$C:$C,Spending!$E:$E,'Monthly Summary'!$A11,Spending!$B:$B,'Monthly Summary'!N$1) -> 150 | O11: =SUMIFS(Spending!$C:$C,Spending!$E:$E,'Monthly Summary'!$A11,Spending!$B:$B,'Monthly Summary'!O$1) -> 0 | P11: =SUMIFS(Spending!$C:$C,Spending!$E:$E,'Monthly Summary'!$A11,Spending!$B:$B,'Monthly Summary'!P$1) -> 0 | Q11: =SUMIFS(Spending!$C:$C,Spending!$E:$E,'Monthly Summary'!$A11,Spending!$B:$B,'Monthly Summary'!Q$1) -> 0 | R11: =SUMIFS(Spending!$C:$C,Spending!$E:$E,'Monthly Summary'!$A11,Spending!$B:$B,'Monthly Summary'!R$1) -> 0 | S11: =SUMIFS(Spending!$C:$C,Spending!$E:$E,'Monthly Summary'!$A11,Spending!$B:$B,'Monthly Summary'!S$1) -> 0 | T11: =SUMIFS(Spending!$C:$C,Spending!$E:$E,'Monthly Summary'!$A11,Spending!$B:$B,'Monthly Summary'!T$1) -> 0
A12: November | B12: =SUMIFS(Spending!$C:$C,Spending!$E:$E,'Monthly Summary'!$A12,Spending!$B:$B,'Monthly Summary'!B$1) -> 350 | C12: =SUMIFS(Spending!$C:$C,Spending!$E:$E,'Monthly Summary'!$A12,Spending!$B:$B,'Monthly Summary'!C$1) -> 0 | D12: =SUMIFS(Spending!$C:$C,Spending!$E:$E,'Monthly Summary'!$A12,Spending!$B:$B,'Monthly Summary'!D$1) -> 0 | E12: =SUMIFS(Spending!$C:$C,Spending!$E:$E,'Monthly Summary'!$A12,Spending!$B:$B,'Monthly Summary'!E$1) -> 0 | F12: =SUMIFS(Spending!$C:$C,Spending!$E:$E,'Monthly Summary'!$A12,Spending!$B:$B,'Monthly Summary'!F$1) -> 0 | G12: =SUMIFS(Spending!$C:$C,Spending!$E:$E,'Monthly Summary'!$A12,Spending!$B:$B,'Monthly Summary'!G$1) -> 0 | H12: =SUMIFS(Spending!$C:$C,Spending!$E:$E,'Monthly Summary'!$A12,Spending!$B:$B,'Monthly Summary'!H$1) -> 0 | I12: =SUMIFS(Spending!$C:$C,Spending!$E:$E,'Monthly Summary'!$A12,Spending!$B:$B,'Monthly Summary'!I$1) -> 0 | J12: =SUMIFS(Spending!$C:$C,Spending!$E:$E,'Monthly Summary'!$A12,Spending!$B:$B,'Monthly Summary'!J$1) -> 0 | K12: =SUMIFS(Spending!$C:$C,Spending!$E:$E,'Monthly Summary'!$A12,Spending!$B:$B,'Monthly Summary'!K$1) -> 0 | L12: =SUMIFS(Spending!$C:$C,Spending!$E:$E,'Monthly Summary'!$A12,Spending!$B:$B,'Monthly Summary'!L$1) -> 0 | M12: =SUMIFS(Spending!$C:$C,Spending!$E:$E,'Monthly Summary'!$A12,Spending!$B:$B,'Monthly Summary'!M$1) -> 0 | N12: =SUMIFS(Spending!$C:$C,Spending!$E:$E,'Monthly Summary'!$A12,Spending!$B:$B,'Monthly Summary'!N$1) -> 0 | O12: =SUMIFS(Spending!$C:$C,Spending!$E:$E,'Monthly Summary'!$A12,Spending!$B:$B,'Monthly Summary'!O$1) -> 0 | P12: =SUMIFS(Spending!$C:$C,Spending!$E:$E,'Monthly Summary'!$A12,Spending!$B:$B,'Monthly Summary'!P$1) -> 0 | Q12: =SUMIFS(Spending!$C:$C,Spending!$E:$E,'Monthly Summary'!$A12,Spending!$B:$B,'Monthly Summary'!Q$1) -> 0 | R12: =SUMIFS(Spending!$C:$C,Spending!$E:$E,'Monthly Summary'!$A12,Spending!$B:$B,'Monthly Summary'!R$1) -> 0 | S12: =SUMIFS(Spending!$C:$C,Spending!$E:$E,'Monthly Summary'!$A12,Spending!$B:$B,'Monthly Summary'!S$1) -> 0 | T12: =SUMIFS(Spending!$C:$C,Spending!$E:$E,'Monthly Summary'!$A12,Spending!$B:$B,'Monthly Summary'!T$1) -> 0
A13: December | B13: =SUMIFS(Spending!$C:$C,Spending!$E:$E,'Monthly Summary'!$A13,Spending!$B:$B,'Monthly Summary'!B$1) -> 0 | C13: =SUMIFS(Spending!$C:$C,Spending!$E:$E,'Monthly Summary'!$A13,Spending!$B:$B,'Monthly Summary'!C$1) -> 0 | D13: =SUMIFS(Spending!$C:$C,Spending!$E:$E,'Monthly Summary'!$A13,Spending!$B:$B,'Monthly Summary'!D$1) -> 0 | E13: =SUMIFS(Spending!$C:$C,Spending!$E:$E,'Monthly Summary'!$A13,Spending!$B:$B,'Monthly Summary'!E$1) -> 0 | F13: =SUMIFS(Spending!$C:$C,Spending!$E:$E,'Monthly Summary'!$A13,Spending!$B:$B,'Monthly Summary'!F$1) -> 0 | G13: =SUMIFS(Spending!$C:$C,Spending!$E:$E,'Monthly Summary'!$A13,Spending!$B:$B,'Monthly Summary'!G$1) -> 0 | H13: =SUMIFS(Spending!$C:$C,Spending!$E:$E,'Monthly Summary'!$A13,Spending!$B:$B,'Monthly Summary'!H$1) -> 0 | I13: =SUMIFS(Spending!$C:$C,Spending!$E:$E,'Monthly Summary'!$A13,Spending!$B:$B,'Monthly Summary'!I$1) -> 0 | J13: =SUMIFS(Spending!$C:$C,Spending!$E:$E,'Monthly Summary'!$A13,Spending!$B:$B,'Monthly Summary'!J$1) -> 0 | K13: =SUMIFS(Spending!$C:$C,Spending!$E:$E,'Monthly Summary'!$A13,Spending!$B:$B,'Monthly Summary'!K$1) -> 0 | L13: =SUMIFS(Spending!$C:$C,Spending!$E:$E,'Monthly Summary'!$A13,Spending!$B:$B,'Monthly Summary'!L$1) -> 0 | M13: =SUMIFS(Spending!$C:$C,Spending!$E:$E,'Monthly Summary'!$A13,Spending!$B:$B,'Monthly Summary'!M$1) -> 0 | N13: =SUMIFS(Spending!$C:$C,Spending!$E:$E,'Monthly Summary'!$A13,Spending!$B:$B,'Monthly Summary'!N$1) -> 0 | O13: =SUMIFS(Spending!$C:$C,Spending!$E:$E,'Monthly Summary'!$A13,Spending!$B:$B,'Monthly Summary'!O$1) -> 0 | P13: =SUMIFS(Spending!$C:$C,Spending!$E:$E,'Monthly Summary'!$A13,Spending!$B:$B,'Monthly Summary'!P$1) -> 0 | Q13: =SUMIFS(Spending!$C:$C,Spending!$E:$E,'Monthly Summary'!$A13,Spending!$B:$B,'Monthly Summary'!Q$1) -> 0 | R13: =SUMIFS(Spending!$C:$C,Spending!$E:$E,'Monthly Summary'!$A13,Spending!$B:$B,'Monthly Summary'!R$1) -> 0 | S13: =SUMIFS(Spending!$C:$C,Spending!$E:$E,'Monthly Summary'!$A13,Spending!$B:$B,'Monthly Summary'!S$1) -> 50 | T13: =SUMIFS(Spending!$C:$C,Spending!$E:$E,'Monthly Summary'!$A13,Spending!$B:$B,'Monthly Summary'!T$1) -> 0
A14: Total | B14: =SUBTOTAL(109,'Monthly Summary'!$B$2:$B$13) -> 370 | C14: =SUBTOTAL(109,'Monthly Summary'!$C$2:$C$13) -> 30 | D14: =SUBTOTAL(109,'Monthly Summary'!$D$2:$D$13) -> 100 | E14: =SUBTOTAL(109,'Monthly Summary'!$E$2:$E$13) -> 162 | F14: =SUBTOTAL(109,'Monthly Summary'!$F$2:$F$13) -> 240 | G14: =SUBTOTAL(109,'Monthly Summary'!$G$2:$G$13) -> 95 | H14: =SUBTOTAL(109,'Monthly Summary'!$H$2:$H$13) -> 70 | I14: =SUBTOTAL(109,'Monthly Summary'!$I$2:$I$13) -> 25.5 | J14: =SUBTOTAL(109,'Monthly Summary'!$J$2:$J$13) -> 49.95 | K14: =SUBTOTAL(109,'Monthly Summary'!$K$2:$K$13) -> 0 | L14: =SUBTOTAL(109,'Monthly Summary'!$L$2:$L$13) -> 0 | M14: =SUBTOTAL(109,'Monthly Summary'!$M$2:$M$13) -> 0 | N14: =SUBTOTAL(109,'Monthly Summary'!$N$2:$N$13) -> 150 | O14: =SUBTOTAL(109,'Monthly Summary'!$O$2:$O$13) -> 0 | P14: =SUBTOTAL(109,'Monthly Summary'!$P$2:$P$13) -> 0 | Q14: =SUBTOTAL(109,'Monthly Summary'!$Q$2:$Q$13) -> 0 | R14: =SUBTOTAL(109,'Monthly Summary'!$R$2:$R$13) -> 0 | S14: =SUBTOTAL(109,'Monthly Summary'!$S$2:$S$13) -> 90 | T14: =SUBTOTAL(109,'Monthly Summary'!$T$2:$T$13) -> 0
A17: Category | B17: January | C17: February | D17: March | E17: April | F17: May | G17: June | H17: July | I17: August | J17: September | K17: October | L17: November | M17: December
A18: Fun | B18: =SUMIFS(Spending!$C:$C,Spending!$B:$B,'Monthly Summary'!$A18,Spending!$E:$E,'Monthly Summary'!B$17) -> 0 | C18: =SUMIFS(Spending!$C:$C,Spending!$B:$B,'Monthly Summary'!$A18,Spending!$E:$E,'Monthly Summary'!C$17) -> 0 | D18: =SUMIFS(Spending!$C:$C,Spending!$B:$B,'Monthly Summary'!$A18,Spending!$E:$E,'Monthly Summary'!D$17) -> 0 | E18: =SUMIFS(Spending!$C:$C,Spending!$B:$B,'Monthly Summary'!$A18,Spending!$E:$E,'Monthly Summary'!E$17) -> 20 | F18: =SUMIFS(Spending!$C:$C,Spending!$B:$B,'Monthly Summary'!$A18,Spending!$E:$E,'Monthly Summary'!F$17) -> 0 | G18: =SUMIFS(Spending!$C:$C,Spending!$B:$B,'Monthly Summary'!$A18,Spending!$E:$E,'Monthly Summary'!G$17) -> 0 | H18: =SUMIFS(Spending!$C:$C,Spending!$B:$B,'Monthly Summary'!$A18,Spending!$E:$E,'Monthly Summary'!H$17) -> 0 | I18: =SUMIFS(Spending!$C:$C,Spending!$B:$B,'Monthly Summary'!$A18,Spending!$E:$E,'Monthly Summary'!I$17) -> 0 | J18: =SUMIFS(Spending!$C:$C,Spending!$B:$B,'Monthly Summary'!$A18,Spending!$E:$E,'Monthly Summary'!J$17) -> 0 | K18: =SUMIFS(Spending!$C:$C,Spending!$B:$B,'Monthly Summary'!$A18,Spending!$E:$E,'Monthly Summary'!K$17) -> 0 | L18: =SUMIFS(Spending!$C:$C,Spending!$B:$B,'Monthly Summary'!$A18,Spending!$E:$E,'Monthly Summary'!L$17) -> 350 | M18: =SUMIFS(Spending!$C:$C,Spending!$B:$B,'Monthly Summary'!$A18,Spending!$E:$E,'Monthly Summary'!M$17) -> 0
A19: Eating Out | B19: =SUMIFS(Spending!$C:$C,Spending!$B:$B,'Monthly Summary'!$A19,Spending!$E:$E,'Monthly Summary'!B$17) -> 0 | C19: =SUMIFS(Spending!$C:$C,Spending!$B:$B,'Monthly Summary'!$A19,Spending!$E:$E,'Monthly Summary'!C$17) -> 0 | D19: =SUMIFS(Spending!$C:$C,Spending!$B:$B,'Monthly Summary'!$A19,Spending!$E:$E,'Monthly Summary'!D$17) -> 0 | E19: =SUMIFS(Spending!$C:$C,Spending!$B:$B,'Monthly Summary'!$A19,Spending!$E:$E,'Monthly Summary'!E$17) -> 0 | F19: =SUMIFS(Spending!$C:$C,Spending!$B:$B,'Monthly Summary'!$A19,Spending!$E:$E,'Monthly Summary'!F$17) -> 30 | G19: =SUMIFS(Spending!$C:$C,Spending!$B:$B,'Monthly Summary'!$A19,Spending!$E:$E,'Monthly Summary'!G$17) -> 0 | H19: =SUMIFS(Spending!$C:$C,Spending!$B:$B,'Monthly Summary'!$A19,Spending!$E:$E,'Monthly Summary'!H$17) -> 0 | I19: =SUMIFS(Spending!$C:$C,Spending!$B:$B,'Monthly Summary'!$A19,Spending!$E:$E,'Monthly Summary'!I$17) -> 0 | J19: =SUMIFS(Spending!$C:$C,Spending!$B:$B,'Monthly Summary'!$A19,Spending!$E:$E,'Monthly Summary'!J$17) -> 0 | K19: =SUMIFS(Spending!$C:$C,Spending!$B:$B,'Monthly Summary'!$A19,Spending!$E:$E,'Monthly Summary'!K$17) -> 0 | L19: =SUMIFS(Spending!$C:$C,Spending!$B:$B,'Monthly Summary'!$A19,Spending!$E:$E,'Monthly Summary'!L$17) -> 0 | M19: =SUMIFS(Spending!$C:$C,Spending!$B:$B,'Monthly Summary'!$A19,Spending!$E:$E,'Monthly Summary'!M$17) -> 0
A20: Tithing/FO | B20: =SUMIFS(Spending!$C:$C,Spending!$B:$B,'Monthly Summary'!$A20,Spending!$E:$E,'Monthly Summary'!B$17) -> 0 | C20: =SUMIFS(Spending!$C:$C,Spending!$B:$B,'Monthly Summary'!$A20,Spending!$E:$E,'Monthly Summary'!C$17) -> 0 | D20: =SUMIFS(Spending!$C:$C,Spending!$B:$B,'Monthly Summary'!$A20,Spending!$E:$E,'Monthly Summary'!D$17) -> 100 | E20: =SUMIFS(Spending!$C:$C,Spending!$B:$B,'Monthly Summary'!$A20,Spending!$E:$E,'Monthly Summary'!E$17) -> 0 | F20: =SUMIFS(Spending!$C:$C,Spending!$B:$B,'Monthly Summary'!$A20,Spending!$E:$E,'Monthly Summary'!F$17) -> 0 | G20: =SUMIFS(Spending!$C:$C,Spending!$B:$B,'Monthly Summary'!$A20,Spending!$E:$E,'Monthly Summary'!G$17) -> 0 | H20: =SUMIFS(Spending!$C:$C,Spending!$B:$B,'Monthly Summary'!$A20,Spending!$E:$E,'Monthly Summary'!H$17) -> 0 | I20: =SUMIFS(Spending!$C:$C,Spending!$B:$B,'Monthly Summary'!$A20,Spending!$E:$E,'Monthly Summary'!I$17) -> 0 | J20: =SUMIFS(Spending!$C:$C,Spending!$B:$B,'Monthly Summary'!$A20,Spending!$E:$E,'Monthly Summary'!J$17) -> 0 | K20: =SUMIFS(Spending!$C:$C,Spending!$B:$B,'Monthly Summary'!$A20,Spending!$E:$E,'Monthly Summary'!K$17) -> 0 | L20: =SUMIFS(Spending!$C:$C,Spending!$B:$B,'Monthly Summary'!$A20,Spending!$E:$E,'Monthly Summary'!L$17) -> 0 | M20: =SUMIFS(Spending!$C:$C,Spending!$B:$B,'Monthly Summary'!$A20,Spending!$E:$E,'Monthly Summary'!M$17) -> 0
A21: Phone | B21: =SUMIFS(Spending!$C:$C,Spending!$B:$B,'Monthly Summary'!$A21,Spending!$E:$E,'Monthly Summary'!B$17) -> 0 | C21: =SUMIFS(Spending!$C:$C,Spending!$B:$B,'Monthly Summary'!$A21,Spending!$E:$E,'Monthly Summary'!C$17) -> 162 | D21: =SUMIFS(Spending!$C:$C,Spending!$B:$B,'Monthly Summary'!$A21,Spending!$E:$E,'Monthly Summary'!D$17) -> 0 | E21: =SUMIFS(Spending!$C:$C,Spending!$B:$B,'Monthly Summary'!$A21,Spending!$E:$E,'Monthly Summary'!E$17) -> 0 | F21: =SUMIFS(Spending!$C:$C,Spending!$B:$B,'Monthly Summary'!$A21,Spending!$E:$E,'Monthly Summary'!F$17) -> 0 | G21: =SUMIFS(Spending!$C:$C,Spending!$B:$B,'Monthly Summary'!$A21,Spending!$E:$E,'Monthly Summary'!G$17) -> 0 | H21: =SUMIFS(Spending!$C:$C,Spending!$B:$B,'Monthly Summary'!$A21,Spending!$E:$E,'Monthly Summary'!H$17) -> 0 | I21: =SUMIFS(Spending!$C:$C,Spending!$B:$B,'Monthly Summary'!$A21,Spending!$E:$E,'Monthly Summary'!I$17) -> 0 | J21: =SUMIFS(Spending!$C:$C,Spending!$B:$B,'Monthly Summary'!$A21,Spending!$E:$E,'Monthly Summary'!J$17) -> 0 | K21: =SUMIFS(Spending!$C:$C,Spending!$B:$B,'Monthly Summary'!$A21,Spending!$E:$E,'Monthly Summary'!K$17) -> 0 | L21: =SUMIFS(Spending!$C:$C,Spending!$B:$B,'Monthly Summary'!$A21,Spending!$E:$E,'Monthly Summary'!L$17) -> 0 | M21: =SUMIFS(Spending!$C:$C,Spending!$B:$B,'Monthly Summary'!$A21,Spending!$E:$E,'Monthly Summary'!M$17) -> 0
A22: Medical | B22: =SUMIFS(Spending!$C:$C,Spending!$B:$B,'Monthly Summary'!$A22,Spending!$E:$E,'Monthly Summary'!B$17) -> 0 | C22: =SUMIFS(Spending!$C:$C,Spending!$B:$B,'Monthly Summary'!$A22,Spending!$E:$E,'Monthly Summary'!C$17) -> 0 | D22: =SUMIFS(Spending!$C:$C,Spending!$B:$B,'Monthly Summary'!$A22,Spending!$E:$E,'Monthly Summary'!D$17) -> 0 | E22: =SUMIFS(Spending!$C:$C,Spending!$B:$B,'Monthly Summary'!$A22,Spending!$E:$E,'Monthly Summary'!E$17) -> 0 | F22: =SUMIFS(Spending!$C:$C,Spending!$B:$B,'Monthly Summary'!$A22,Spending!$E:$E,'Monthly Summary'!F$17) -> 0 | G22: =SUMIFS(Spending!$C:$C,Spending!$B:$B,'Monthly Summary'!$A22,Spending!$E:$E,'Monthly Summary'!G$17) -> 0 | H22: =SUMIFS(Spending!$C:$C,Spending!$B:$B,'Monthly Summary'!$A22,Spending!$E:$E,'Monthly Summary'!H$17) -> 0 | I22: =SUMIFS(Spending!$C:$C,Spending!$B:$B,'Monthly Summary'!$A22,Spending!$E:$E,'Monthly Summary'!I$17) -> 0 | J22: =SUMIFS(Spending!$C:$C,Spending!$B:$B,'Monthly Summary'!$A22,Spending!$E:$E,'Monthly Summary'!J$17) -> 240 | K22: =SUMIFS(Spending!$C:$C,Spending!$B:$B,'Monthly Summary'!$A22,Spending!$E:$E,'Monthly Summary'!K$17) -> 0 | L22: =SUMIFS(Spending!$C:$C,Spending!$B:$B,'Monthly Summary'!$A22,Spending!$E:$E,'Monthly Summary'!L$17) -> 0 | M22: =SUMIFS(Spending!$C:$C,Spending!$B:$B,'Monthly Summary'!$A22,Spending!$E:$E,'Monthly Summary'!M$17) -> 0
A23: Gas | B23: =SUMIFS(Spending!$C:$C,Spending!$B:$B,'Monthly Summary'!$A23,Spending!$E:$E,'Monthly Summary'!B$17) -> 0 | C23: =SUMIFS(Spending!$C:$C,Spending!$B:$B,'Monthly Summary'!$A23,Spending!$E:$E,'Monthly Summary'!C$17) -> 0 | D23: =SUMIFS(Spending!$C:$C,Spending!$B:$B,'Monthly Summary'!$A23,Spending!$E:$E,'Monthly Summary'!D$17) -> 0 | E23: =SUMIFS(Spending!$C:$C,Spending!$B:$B,'Monthly Summary'!$A23,Spending!$E:$E,'Monthly Summary'!E$17) -> 40 | F23: =SUMIFS(Spending!$C:$C,Spending!$B:$B,'Monthly Summary'!$A23,Spending!$E:$E,'Monthly Summary'!F$17) -> 0 | G23: =SUMIFS(Spending!$C:$C,Spending!$B:$B,'Monthly Summary'!$A23,Spending!$E:$E,'Monthly Summary'!G$17) -> 55 | H23: =SUMIFS(Spending!$C:$C,Spending!$B:$B,'Monthly Summary'!$A23,Spending!$E:$E,'Monthly Summary'!H$17) -> 0 | I23: =SUMIFS(Spending!$C:$C,Spending!$B:$B,'Monthly Summary'!$A23,Spending!$E:$E,'Monthly Summary'!I$17) -> 0 | J23: =SUMIFS(Spending!$C:$C,Spending!$B:$B,'Monthly Summary'!$A23,Spending!$E:$E,'Monthly Summary'!J$17) -> 0 | K23: =SUMIFS(Spending!$C:$C,Spending!$B:$B,'Monthly Summary'!$A23,Spending!$E:$E,'Monthly Summary'!K$17) -> 0 | L23: =SUMIFS(Spending!$C:$C,Spending!$B:$B,'Monthly Summary'!$A23,Spending!$E:$E,'Monthly Summary'!L$17) -> 0 | M23: =SUMIFS(Spending!$C:$C,Spending!$B:$B,'Monthly Summary'!$A23,Spending!$E:$E,'Monthly Summary'!M$17) -> 0
A24: Utilities | B24: =SUMIFS(Spending!$C:$C,Spending!$B:$B,'Monthly Summary'!$A24,Spending!$E:$E,'Monthly Summary'!B$17) -> 35 | C24: =SUMIFS(Spending!$C:$C,Spending!$B:$B,'Monthly Summary'!$A24,Spending!$E:$E,'Monthly Summary'!C$17) -> 35 | D24: =SUMIFS(Spending!$C:$C,Spending!$B:$B,'Monthly Summary'!$A24,Spending!$E:$E,'Monthly Summary'!D$17) -> 0 | E24: =SUMIFS(Spending!$C:$C,Spending!$B:$B,'Monthly Summary'!$A24,Spending!$E:$E,'Monthly Summary'!E$17) -> 0 | F24: =SUMIFS(Spending!$C:$C,Spending!$B:$B,'Monthly Summary'!$A24,Spending!$E:$E,'Monthly Summary'!F$17) -> 0 | G24: =SUMIFS(Spending!$C:$C,Spending!$B:$B,'Monthly Summary'!$A24,Spending!$E:$E,'Monthly Summary'!G$17) -> 0 | H24: =SUMIFS(Spending!$C:$C,Spending!$B:$B,'Monthly Summary'!$A24,Spending!$E:$E,'Monthly Summary'!H$17) -> 0 | I24: =SUMIFS(Spending!$C:$C,Spending!$B:$B,'Monthly Summary'!$A24,Spending!$E:$E,'Monthly Summary'!I$17) -> 0 | J24: =SUMIFS(Spending!$C:$C,Spending!$B:$B,'Monthly Summary'!$A24,Spending!$E:$E,'Monthly Summary'!J$17) -> 0 | K24: =SUMIFS(Spending!$C:$C,Spending!$B:$B,'Monthly Summary'!$A24,Spending!$E:$E,'Monthly Summary'!K$17) -> 0 | L24: =SUMIFS(Spending!$C:$C,Spending!$B:$B,'Monthly Summary'!$A24,Spending!$E:$E,'Monthly Summary'!L$17) -> 0 | M24: =SUMIFS(Spending!$C:$C,Spending!$B:$B,'Monthly Summary'!$A24,Spending!$E:$E,'Monthly Summary'!M$17) -> 0
A25: Food | B25: =SUMIFS(Spending!$C:$C,Spending!$B:$B,'Monthly Summary'!$A25,Spending!$E:$E,'Monthly Summary'!B$17) -> 0 | C25: =SUMIFS(Spending!$C:$C,Spending!$B:$B,'Monthly Summary'!$A25,Spending!$E:$E,'Monthly Summary'!C$17) -> 25.5 | D25: =SUMIFS(Spending!$C:$C,Spending!$B:$B,'Monthly Summary'!$A25,Spending!$E:$E,'Monthly Summary'!D$17) -> 0 | E25: =SUMIFS(Spending!$C:$C,Spending!$B:$B,'Monthly Summary'!$A25,Spending!$E:$E,'Monthly Summary'!E$17) -> 0 | F25: =SUMIFS(Spending!$C:$C,Spending!$B:$B,'Monthly Summary'!$A25,Spending!$E:$E,'Monthly Summary'!F$17) -> 0 | G25: =SUMIFS(Spending!$C:$C,Spending!$B:$B,'Monthly Summary'!$A25,Spending!$E:$E,'Monthly Summary'!G$17) -> 0 | H25: =SUMIFS(Spending!$C:$C,Spending!$B:$B,'Monthly Summary'!$A25,Spending!$E:$E,'Monthly Summary'!H$17) -> 0 | I25: =SUMIFS(Spending!$C:$C,Spending!$B:$B,'Monthly Summary'!$A25,Spending!$E:$E,'Monthly Summary'!I$17) -> 0 | J25: =SUMIFS(Spending!$C:$C,Spending!$B:$B,'Monthly Summary'!$A25,Spending!$E:$E,'Monthly Summary'!J$17) -> 0 | K25: =SUMIFS(Spending!$C:$C,Spending!$B:$B,'Monthly Summary'!$A25,Spending!$E:$E,'Monthly Summary'!K$17) -> 0 | L25: =SUMIFS(Spending!$C:$C,Spending!$B:$B,'Monthly Summary'!$A25,Spending!$E:$E,'Monthly Summary'!L$17) -> 0 | M25: =SUMIFS(Spending!$C:$C,Spending!$B:$B,'Monthly Summary'!$A25,Spending!$E:$E,'Monthly Summary'!M$17) -> 0
A26: Misc | B26: =SUMIFS(Spending!$C:$C,Spending!$B:$B,'Monthly Summary'!$A26,Spending!$E:$E,'Monthly Summary'!B$17) -> 0 | C26: =SUMIFS(Spending!$C:$C,Spending!$B:$B,'Monthly Summary'!$A26,Spending!$E:$E,'Monthly Summary'!C$17) -> 0 | D26: =SUMIFS(Spending!$C:$C,Spending!$B:$B,'Monthly Summary'!$A26,Spending!$E:$E,'Monthly Summary'!D$17) -> 0 | E26: =SUMIFS(Spending!$C:$C,Spending!$B:$B,'Monthly Summary'!$A26,Spending!$E:$E,'Monthly Summary'!E$17) -> 0 | F26: =SUMIFS(Spending!$C:$C,Spending!$B:$B,'Monthly Summary'!$A26,Spending!$E:$E,'Monthly Summary'!F$17) -> 0 | G26: =SUMIFS(Spending!$C:$C,Spending!$B:$B,'Monthly Summary'!$A26,Spending!$E:$E,'Monthly Summary'!G$17) -> 30 | H26: =SUMIFS(Spending!$C:$C,Spending!$B:$B,'Monthly Summary'!$A26,Spending!$E:$E,'Monthly Summary'!H$17) -> 19.95 | I26: =SUMIFS(Spending!$C:$C,Spending!$B:$B,'Monthly Summary'!$A26,Spending!$E:$E,'Monthly Summary'!I$17) -> 0 | J26: =SUMIFS(Spending!$C:$C,Spending!$B:$B,'Monthly Summary'!$A26,Spending!$E:$E,'Monthly Summary'!J$17) -> 0 | K26: =SUMIFS(Spending!$C:$C,Spending!$B:$B,'Monthly Summary'!$A26,Spending!$E:$E,'Monthly Summary'!K$17) -> 0 | L26: =SUMIFS(Spending!$C:$C,Spending!$B:$B,'Monthly Summary'!$A26,Spending!$E:$E,'Monthly Summary'!L$17) -> 0 | M26: =SUMIFS(Spending!$C:$C,Spending!$B:$B,'Monthly Summary'!$A26,Spending!$E:$E,'Monthly Summary'!M$17) -> 0
A27: Mark | B27: =SUMIFS(Spending!$C:$C,Spending!$B:$B,'Monthly Summary'!$A27,Spending!$E:$E,'Monthly Summary'!B$17) -> 0 | C27: =SUMIFS(Spending!$C:$C,Spending!$B:$B,'Monthly Summary'!$A27,Spending!$E:$E,'Monthly Summary'!C$17) -> 0 | D27: =SUMIFS(Spending!$C:$C,Spending!$B:$B,'Monthly Summary'!$A27,Spending!$E:$E,'Monthly Summary'!D$17) -> 0 | E27: =SUMIFS(Spending!$C:$C,Spending!$B:$B,'Monthly Summary'!$A27,Spending!$E:$E,'Monthly Summary'!E$17) -> 0 | F27: =SUMIFS(Spending!$C:$C,Spending!$B:$B,'Monthly Summary'!$A27,Spending!$E:$E,'Monthly Summary'!F$17) -> 0 | G27: =SUMIFS(Spending!$C:$C,Spending!$B:$B,'Monthly Summary'!$A27,Spending!$E:$E,'Monthly Summary'!G$17) -> 0 | H27: =SUMIFS(Spending!$C:$C,Spending!$B:$B,'Monthly Summary'!$A27,Spending!$E:$E,'Monthly Summary'!H$17) -> 0 | I27: =SUMIFS(Spending!$C:$C,Spending!$B:$B,'Monthly Summary'!$A27,Spending!$E:$E,'Monthly Summary'!I$17) -> 0 | J27: =SUMIFS(Spending!$C:$C,Spending!$B:$B,'Monthly Summary'!$A27,Spending!$E:$E,'Monthly Summary'!J$17) -> 0 | K27: =SUMIFS(Spending!$C:$C,Spending!$B:$B,'Monthly Summary'!$A27,Spending!$E:$E,'Monthly Summary'!K$17) -> 0 | L27: =SUMIFS(Spending!$C:$C,Spending!$B:$B,'Monthly Summary'!$A27,Spending!$E:$E,'Monthly Summary'!L$17) -> 0 | M27: =SUMIFS(Spending!$C:$C,Spending!$B:$B,'Monthly Summary'!$A27,Spending!$E:$E,'Monthly Summary'!M$17) -> 0
A28: Rachel | B28: =SUMIFS(Spending!$C:$C,Spending!$B:$B,'Monthly Summary'!$A28,Spending!$E:$E,'Monthly Summary'!B$17) -> 0 | C28: =SUMIFS(Spending!$C:$C,Spending!$B:$B,'Monthly Summary'!$A28,Spending!$E:$E,'Monthly Summary'!C$17) -> 0 | D28: =SUMIFS(Spending!$C:$C,Spending!$B:$B,'Monthly Summary'!$A28,Spending!$E:$E,'Monthly Summary'!D$17) -> 0 | E28: =SUMIFS(Spending!$C:$C,Spending!$B:$B,'Monthly Summary'!$A28,Spending!$E:$E,'Monthly Summary'!E$17) -> 0 | F28: =SUMIFS(Spending!$C:$C,Spending!$B:$B,'Monthly Summary'!$A28,Spending!$E:$E,'Monthly Summary'!F$17) -> 0 | G28: =SUMIFS(Spending!$C:$C,Spending!$B:$B,'Monthly Summary'!$A28,Spending!$E:$E,'Monthly Summary'!G$17) -> 0 | H28: =SUMIFS(Spending!$C:$C,Spending!$B:$B,'Monthly Summary'!$A28,Spending!$E:$E,'Monthly Summary'!H$17) -> 0 | I28: =SUMIFS(Spending!$C:$C,Spending!$B:$B,'Monthly Summary'!$A28,Spending!$E:$E,'Monthly Summary'!I$17) -> 0 | J28: =SUMIFS(Spending!$C:$C,Spending!$B:$B,'Monthly Summary'!$A28,Spending!$E:$E,'Monthly Summary'!J$17) -> 0 | K28: =SUMIFS(Spending!$C:$C,Spending!$B:$B,'Monthly Summary'!$A28,Spending!$E:$E,'Monthly Summary'!K$17) -> 0 | L28: =SUMIFS(Spending!$C:$C,Spending!$B:$B,'Monthly Summary'!$A28,Spending!$E:$E,'Monthly Summary'!L$17) -> 0 | M28: =SUMIFS(Spending!$C:$C,Spending!$B:$B,'Monthly Summary'!$A28,Spending!$E:$E,'Monthly Summary'!M$17) -> 0
A29: Home | B29: =SUMIFS(Spending!$C:$C,Spending!$B:$B,'Monthly Summary'!$A29,Spending!$E:$E,'Monthly Summary'!B$17) -> 0 | C29: =SUMIFS(Spending!$C:$C,Spending!$B:$B,'Monthly Summary'!$A29,Spending!$E:$E,'Monthly Summary'!C$17) -> 0 | D29: =SUMIFS(Spending!$C:$C,Spending!$B:$B,'Monthly Summary'!$A29,Spending!$E:$E,'Monthly Summary'!D$17) -> 0 | E29: =SUMIFS(Spending!$C:$C,Spending!$B:$B,'Monthly Summary'!$A29,Spending!$E:$E,'Monthly Summary'!E$17) -> 0 | F29: =SUMIFS(Spending!$C:$C,Spending!$B:$B,'Monthly Summary'!$A29,Spending!$E:$E,'Monthly Summary'!F$17) -> 0 | G29: =SUMIFS(Spending!$C:$C,Spending!$B:$B,'Monthly Summary'!$A29,Spending!$E:$E,'Monthly Summary'!G$17) -> 0 | H29: =SUMIFS(Spending!$C:$C,Spending!$B:$B,'Monthly Summary'!$A29,Spending!$E:$E,'Monthly Summary'!H$17) -> 0 | I29: =SUMIFS(Spending!$C:$C,Spending!$B:$B,'Monthly Summary'!$A29,Spending!$E:$E,'Monthly Summary'!I$17) -> 0 | J29: =SUMIFS(Spending!$C:$C,Spending!$B:$B,'Monthly Summary'!$A29,Spending!$E:$E,'Monthly Summary'!J$17) -> 0 | K29: =SUMIFS(Spending!$C:$C,Spending!$B:$B,'Monthly Summary'!$A29,Spending!$E:$E,'Monthly Summary'!K$17) -> 0 | L29: =SUMIFS(Spending!$C:$C,Spending!$B:$B,'Monthly Summary'!$A29,Spending!$E:$E,'Monthly Summary'!L$17) -> 0 | M29: =SUMIFS(Spending!$C:$C,Spending!$B:$B,'Monthly Summary'!$A29,Spending!$E:$E,'Monthly Summary'!M$17) -> 0
A30: Savings | B30: =SUMIFS(Spending!$C:$C,Spending!$B:$B,'Monthly Summary'!$A30,Spending!$E:$E,'Monthly Summary'!B$17) -> 0 | C30: =SUMIFS(Spending!$C:$C,Spending!$B:$B,'Monthly Summary'!$A30,Spending!$E:$E,'Monthly Summary'!C$17) -> 0 | D30: =SUMIFS(Spending!$C:$C,Spending!$B:$B,'Monthly Summary'!$A30,Spending!$E:$E,'Monthly Summary'!D$17) -> 0 | E30: =SUMIFS(Spending!$C:$C,Spending!$B:$B,'Monthly Summary'!$A30,Spending!$E:$E,'Monthly Summary'!E$17) -> 0 | F30: =SUMIFS(Spending!$C:$C,Spending!$B:$B,'Monthly Summary'!$A30,Spending!$E:$E,'Monthly Summary'!F$17) -> 0 | G30: =SUMIFS(Spending!$C:$C,Spending!$B:$B,'Monthly Summary'!$A30,Spending!$E:$E,'Monthly Summary'!G$17) -> 0 | H30: =SUMIFS(Spending!$C:$C,Spending!$B:$B,'Monthly Summary'!$A30,Spending!$E:$E,'Monthly Summary'!H$17) -> 0 | I30: =SUMIFS(Spending!$C:$C,Spending!$B:$B,'Monthly Summary'!$A30,Spending!$E:$E,'Monthly Summary'!I$17) -> 0 | J30: =SUMIFS(Spending!$C:$C,Spending!$B:$B,'Monthly Summary'!$A30,Spending!$E:$E,'Monthly Summary'!J$17) -> 0 | K30: =SUMIFS(Spending!$C:$C,Spending!$B:$B,'Monthly Summary'!$A30,Spending!$E:$E,'Monthly Summary'!K$17) -> 150 | L30: =SUMIFS(Spending!$C:$C,Spending!$B:$B,'Monthly Summary'!$A30,Spending!$E:$E,'Monthly Summary'!L$17) -> 0 | M30: =SUMIFS(Spending!$C:$C,Spending!$B:$B,'Monthly Summary'!$A30,Spending!$E:$E,'Monthly Summary'!M$17) -> 0
A31: Clothing | B31: =SUMIFS(Spending!$C:$C,Spending!$B:$B,'Monthly Summary'!$A31,Spending!$E:$E,'Monthly Summary'!B$17) -> 0 | C31: =SUMIFS(Spending!$C:$C,Spending!$B:$B,'Monthly Summary'!$A31,Spending!$E:$E,'Monthly Summary'!C$17) -> 0 | D31: =SUMIFS(Spending!$C:$C,Spending!$B:$B,'Monthly Summary'!$A31,Spending!$E:$E,'Monthly Summary'!D$17) -> 0 | E31: =SUMIFS(Spending!$C:$C,Spending!$B:$B,'Monthly Summary'!$A31,Spending!$E:$E,'Monthly Summary'!E$17) -> 0 | F31: =SUMIFS(Spending!$C:$C,Spending!$B:$B,'Monthly Summary'!$A31,Spending!$E:$E,'Monthly Summary'!F$17) -> 0 | G31: =SUMIFS(Spending!$C:$C,Spending!$B:$B,'Monthly Summary'!$A31,Spending!$E:$E,'Monthly Summary'!G$17) -> 0 | H31: =SUMIFS(Spending!$C:$C,Spending!$B:$B,'Monthly Summary'!$A31,Spending!$E:$E,'Monthly Summary'!H$17) -> 0 | I31: =SUMIFS(Spending!$C:$C,Spending!$B:$B,'Monthly Summary'!$A31,Spending!$E:$E,'Monthly Summary'!I$17) -> 0 | J31: =SUMIFS(Spending!$C:$C,Spending!$B:$B,'Monthly Summary'!$A31,Spending!$E:$E,'Monthly Summary'!J$17) -> 0 | K31: =SUMIFS(Spending!$C:$C,Spending!$B:$B,'Monthly Summary'!$A31,Spending!$E:$E,'Monthly Summary'!K$17) -> 0 | L31: =SUMIFS(Spending!$C:$C,Spending!$B:$B,'Monthly Summary'!$A31,Spending!$E:$E,'Monthly Summary'!L$17) -> 0 | M31: =SUMIFS(Spending!$C:$C,Spending!$B:$B,'Monthly Summary'!$A31,Spending!$E:$E,'Monthly Summary'!M$17) -> 0
A32: School | B32: =SUMIFS(Spending!$C:$C,Spending!$B:$B,'Monthly Summary'!$A32,Spending!$E:$E,'Monthly Summary'!B$17) -> 0 | C32: =SUMIFS(Spending!$C:$C,Spending!$B:$B,'Monthly Summary'!$A32,Spending!$E:$E,'Monthly Summary'!C$17) -> 0 | D32: =SUMIFS(Spending!$C:$C,Spending!$B:$B,'Monthly Summary'!$A32,Spending!$E:$E,'Monthly Summary'!D$17) -> 0 | E32: =SUMIFS(Spending!$C:$C,Spending!$B:$B,'Monthly Summary'!$A32,Spending!$E:$E,'Monthly Summary'!E$17) -> 0 | F32: =SUMIFS(Spending!$C:$C,Spending!$B:$B,'Monthly Summary'!$A32,Spending!$E:$E,'Monthly Summary'!F$17) -> 0 | G32: =SUMIFS(Spending!$C:$C,Spending!$B:$B,'Monthly Summary'!$A32,Spending!$E:$E,'Monthly Summary'!G$17) -> 0 | H32: =SUMIFS(Spending!$C:$C,Spending!$B:$B,'Monthly Summary'!$A32,Spending!$E:$E,'Monthly Summary'!H$17) -> 0 | I32: =SUMIFS(Spending!$C:$C,Spending!$B:$B,'Monthly Summary'!$A32,Spending!$E:$E,'Monthly Summary'!I$17) -> 0 | J32: =SUMIFS(Spending!$C:$C,Spending!$B:$B,'Monthly Summary'!$A32,Spending!$E:$E,'Monthly Summary'!J$17) -> 0 | K32: =SUMIFS(Spending!$C:$C,Spending!$B:$B,'Monthly Summary'!$A32,Spending!$E:$E,'Monthly Summary'!K$17) -> 0 | L32: =SUMIFS(Spending!$C:$C,Spending!$B:$B,'Monthly Summary'!$A32,Spending!$E:$E,'Monthly Summary'!L$17) -> 0 | M32: =SUMIFS(Spending!$C:$C,Spending!$B:$B,'Monthly Summary'!$A32,Spending!$E:$E,'Monthly Summary'!M$17) -> 0
A33: Insurance | B33: =SUMIFS(Spending!$C:$C,Spending!$B:$B,'Monthly Summary'!$A33,Spending!$E:$E,'Monthly Summary'!B$17) -> 0 | C33: =SUMIFS(Spending!$C:$C,Spending!$B:$B,'Monthly Summary'!$A33,Spending!$E:$E,'Monthly Summary'!C$17) -> 0 | D33: =SUMIFS(Spending!$C:$C,Spending!$B:$B,'Monthly Summary'!$A33,Spending!$E:$E,'Monthly Summary'!D$17) -> 0 | E33: =SUMIFS(Spending!$C:$C,Spending!$B:$B,'Monthly Summary'!$A33,Spending!$E:$E,'Monthly Summary'!E$17) -> 0 | F33: =SUMIFS(Spending!$C:$C,Spending!$B:$B,'Monthly Summary'!$A33,Spending!$E:$E,'Monthly Summary'!F$17) -> 0 | G33: =SUMIFS(Spending!$C:$C,Spending!$B:$B,'Monthly Summary'!$A33,Spending!$E:$E,'Monthly Summary'!G$17) -> 0 | H33: =SUMIFS(Spending!$C:$C,Spending!$B:$B,'Monthly Summary'!$A33,Spending!$E:$E,'Monthly Summary'!H$17) -> 0 | I33: =SUMIFS(Spending!$C:$C,Spending!$B:$B,'Monthly Summary'!$A33,Spending!$E:$E,'Monthly Summary'!I$17) -> 0 | J33: =SUMIFS(Spending!$C:$C,Spending!$B:$B,'Monthly Summary'!$A33,Spending!$E:$E,'Monthly Summary'!J$17) -> 0 | K33: =SUMIFS(Spending!$C:$C,Spending!$B:$B,'Monthly Summary'!$A33,Spending!$E:$E,'Monthly Summary'!K$17) -> 0 | L33: =SUMIFS(Spending!$C:$C,Spending!$B:$B,'Monthly Summary'!$A33,Spending!$E:$E,'Monthly Summary'!L$17) -> 0 | M33: =SUMIFS(Spending!$C:$C,Spending!$B:$B,'Monthly Summary'!$A33,Spending!$E:$E,'Monthly Summary'!M$17) -> 0
A34: Car | B34: =SUMIFS(Spending!$C:$C,Spending!$B:$B,'Monthly Summary'!$A34,Spending!$E:$E,'Monthly Summary'!B$17) -> 0 | C34: =SUMIFS(Spending!$C:$C,Spending!$B:$B,'Monthly Summary'!$A34,Spending!$E:$E,'Monthly Summary'!C$17) -> 0 | D34: =SUMIFS(Spending!$C:$C,Spending!$B:$B,'Monthly Summary'!$A34,Spending!$E:$E,'Monthly Summary'!D$17) -> 0 | E34: =SUMIFS(Spending!$C:$C,Spending!$B:$B,'Monthly Summary'!$A34,Spending!$E:$E,'Monthly Summary'!E$17) -> 0 | F34: =SUMIFS(Spending!$C:$C,Spending!$B:$B,'Monthly Summary'!$A34,Spending!$E:$E,'Monthly Summary'!F$17) -> 0 | G34: =SUMIFS(Spending!$C:$C,Spending!$B:$B,'Monthly Summary'!$A34,Spending!$E:$E,'Monthly Summary'!G$17) -> 0 | H34: =SUMIFS(Spending!$C:$C,Spending!$B:$B,'Monthly Summary'!$A34,Spending!$E:$E,'Monthly Summary'!H$17) -> 0 | I34: =SUMIFS(Spending!$C:$C,Spending!$B:$B,'Monthly Summary'!$A34,Spending!$E:$E,'Monthly Summary'!I$17) -> 0 | J34: =SUMIFS(Spending!$C:$C,Spending!$B:$B,'Monthly Summary'!$A34,Spending!$E:$E,'Monthly Summary'!J$17) -> 0 | K34: =SUMIFS(Spending!$C:$C,Spending!$B:$B,'Monthly Summary'!$A34,Spending!$E:$E,'Monthly Summary'!K$17) -> 0 | L34: =SUMIFS(Spending!$C:$C,Spending!$B:$B,'Monthly Summary'!$A34,Spending!$E:$E,'Monthly Summary'!L$17) -> 0 | M34: =SUMIFS(Spending!$C:$C,Spending!$B:$B,'Monthly Summary'!$A34,Spending!$E:$E,'Monthly Summary'!M$17) -> 0
A35: Gifts | B35: =SUMIFS(Spending!$C:$C,Spending!$B:$B,'Monthly Summary'!$A35,Spending!$E:$E,'Monthly Summary'!B$17) -> 0 | C35: =SUMIFS(Spending!$C:$C,Spending!$B:$B,'Monthly Summary'!$A35,Spending!$E:$E,'Monthly Summary'!C$17) -> 0 | D35: =SUMIFS(Spending!$C:$C,Spending!$B:$B,'Monthly Summary'!$A35,Spending!$E:$E,'Monthly Summary'!D$17) -> 0 | E35: =SUMIFS(Spending!$C:$C,Spending!$B:$B,'Monthly Summary'!$A35,Spending!$E:$E,'Monthly Summary'!E$17) -> 0 | F35: =SUMIFS(Spending!$C:$C,Spending!$B:$B,'Monthly Summary'!$A35,Spending!$E:$E,'Monthly Summary'!F$17) -> 0 | G35: =SUMIFS(Spending!$C:$C,Spending!$B:$B,'Monthly Summary'!$A35,Spending!$E:$E,'Monthly Summary'!G$17) -> 0 | H35: =SUMIFS(Spending!$C:$C,Spending!$B:$B,'Monthly Summary'!$A35,Spending!$E:$E,'Monthly Summary'!H$17) -> 0 | I35: =SUMIFS(Spending!$C:$C,Spending!$B:$B,'Monthly Summary'!$A35,Spending!$E:$E,'Monthly Summary'!I$17) -> 40 | J35: =SUMIFS(Spending!$C:$C,Spending!$B:$B,'Monthly Summary'!$A35,Spending!$E:$E,'Monthly Summary'!J$17) -> 0 | K35: =SUMIFS(Spending!$C:$C,Spending!$B:$B,'Monthly Summary'!$A35,Spending!$E:$E,'Monthly Summary'!K$17) -> 0 | L35: =SUMIFS(Spending!$C:$C,Spending!$B:$B,'Monthly Summary'!$A35,Spending!$E:$E,'Monthly Summary'!L$17) -> 0 | M35: =SUMIFS(Spending!$C:$C,Spending!$B:$B,'Monthly Summary'!$A35,Spending!$E:$E,'Monthly Summary'!M$17) -> 50
A36: Rent | B36: =SUMIFS(Spending!$C:$C,Spending!$B:$B,'Monthly Summary'!$A36,Spending!$E:$E,'Monthly Summary'!B$17) -> 0 | C36: =SUMIFS(Spending!$C:$C,Spending!$B:$B,'Monthly Summary'!$A36,Spending!$E:$E,'Monthly Summary'!C$17) -> 0 | D36: =SUMIFS(Spending!$C:$C,Spending!$B:$B,'Monthly Summary'!$A36,Spending!$E:$E,'Monthly Summary'!D$17) -> 0 | E36: =SUMIFS(Spending!$C:$C,Spending!$B:$B,'Monthly Summary'!$A36,Spending!$E:$E,'Monthly Summary'!E$17) -> 0 | F36: =SUMIFS(Spending!$C:$C,Spending!$B:$B,'Monthly Summary'!$A36,Spending!$E:$E,'Monthly Summary'!F$17) -> 0 | G36: =SUMIFS(Spending!$C:$C,Spending!$B:$B,'Monthly Summary'!$A36,Spending!$E:$E,'Monthly Summary'!G$17) -> 0 | H36: =SUMIFS(Spending!$C:$C,Spending!$B:$B,'Monthly Summary'!$A36,Spending!$E:$E,'Monthly Summary'!H$17) -> 0 | I36: =SUMIFS(Spending!$C:$C,Spending!$B:$B,'Monthly Summary'!$A36,Spending!$E:$E,'Monthly Summary'!I$17) -> 0 | J36: =SUMIFS(Spending!$C:$C,Spending!$B:$B,'Monthly Summary'!$A36,Spending!$E:$E,'Monthly Summary'!J$17) -> 0 | K36: =SUMIFS(Spending!$C:$C,Spending!$B:$B,'Monthly Summary'!$A36,Spending!$E:$E,'Monthly Summary'!K$17) -> 0 | L36: =SUMIFS(Spending!$C:$C,Spending!$B:$B,'Monthly Summary'!$A36,Spending!$E:$E,'Monthly Summary'!L$17) -> 0 | M36: =SUMIFS(Spending!$C:$C,Spending!$B:$B,'Monthly Summary'!$A36,Spending!$E:$E,'Monthly Summary'!M$17) -> 0
A37: Total | B37: =SUBTOTAL(109,[January]) -> 35 | C37: =SUBTOTAL(109,[February]) -> 222.5 | D37: =SUBTOTAL(109,[March]) -> 100 | E37: =SUBTOTAL(109,[April]) -> 60 | F37: =SUBTOTAL(109,[May]) -> 30 | G37: =SUBTOTAL(109,[June]) -> 85 | H37: =SUBTOTAL(109,[July]) -> 19.95 | I37: =SUBTOTAL(109,[August]) -> 40 | J37: =SUBTOTAL(109,[September]) -> 240 | K37: =SUBTOTAL(109,[October]) -> 150 | L37: =SUBTOTAL(109,[November]) -> 350 | M37: =SUBTOTAL(109,[December]) -> 50
A39: Payment Type | B39: Dollar Amount | C39: %
A40: Visa | B40: =SUMIF(Spending!$D:$D,$A40,Spending!$C:$C) -> 841.95 | C40: =Table3[[#This Row],[Dollar Amount]]/Table3[[#Totals],[Dollar Amount]] -> 0.6090274513
A41: Debit | B41: =SUMIF(Spending!$D:$D,$A41,Spending!$C:$C) -> 120.5 | C41: =Table3[[#This Row],[Dollar Amount]]/Table3[[#Totals],[Dollar Amount]] -> 0.08716409273
A42: Cash | B42: =SUMIF(Spending!$D:$D,$A42,Spending!$C:$C) -> 100 | C42: =Table3[[#This Row],[Dollar Amount]]/Table3[[#Totals],[Dollar Amount]] -> 0.07233534667
A43: Check | B43: =SUMIF(Spending!$D:$D,$A43,Spending!$C:$C) -> 320 | C43: =Table3[[#This Row],[Dollar Amount]]/Table3[[#Totals],[Dollar Amount]] -> 0.2314731093
A44: Total | B44: =SUBTOTAL(109,[Dollar Amount]) -> 1382.45 | C44: =SUBTOTAL(109,[%]) -> 1
A46: Months | B46: Remaining/Overdraft
A47: January | B47: =SUMIF(Budget3[],Table6[[#This Row],[Months]],Budget3[$ Budget])-SUMIF(Spending!$E:$E,'Monthly Summary'!A47,Spending!$C:$C) -> 1965
A48: February | B48: =SUMIF(Budget3[],Table6[[#This Row],[Months]],Budget3[$ Budget])-SUMIF(Spending!$E:$E,'Monthly Summary'!A48,Spending!$C:$C) -> 1577.5
A49: March | B49: =SUMIF(Budget3[],Table6[[#This Row],[Months]],Budget3[$ Budget])-SUMIF(Spending!$E:$E,'Monthly Summary'!A49,Spending!$C:$C) -> 2000
A50: April | B50: =SUMIF(Budget3[],Table6[[#This Row],[Months]],Budget3[$ Budget])-SUMIF(Spending!$E:$E,'Monthly Summary'!A50,Spending!$C:$C) -> 2340
A51: May | B51: =SUMIF(Budget3[],Table6[[#This Row],[Months]],Budget3[$ Budget])-SUMIF(Spending!$E:$E,'Monthly Summary'!A51,Spending!$C:$C) -> 970
A52: June | B52: =SUMIF(Budget3[],Table6[[#This Row],[Months]],Budget3[$ Budget])-SUMIF(Spending!$E:$E,'Monthly Summary'!A52,Spending!$C:$C) -> 1415
A53: July | B53: =SUMIF(Budget3[],Table6[[#This Row],[Months]],Budget3[$ Budget])-SUMIF(Spending!$E:$E,'Monthly Summary'!A53,Spending!$C:$C) -> 1780.05
A54: August | B54: =SUMIF(Budget3[],Table6[[#This Row],[Months]],Budget3[$ Budget])-SUMIF(Spending!$E:$E,'Monthly Summary'!A54,Spending!$C:$C) -> 2060
A55: September | B55: =SUMIF(Budget3[],Table6[[#This Row],[Months]],Budget3[$ Budget])-SUMIF(Spending!$E:$E,'Monthly Summary'!A55,Spending!$C:$C) -> 2160
A56: October | B56: =SUMIF(Budget3[],Table6[[#This Row],[Months]],Budget3[$ Budget])-SUMIF(Spending!$E:$E,'Monthly Summary'!A56,Spending!$C:$C) -> 850
A57: November | B57: =SUMIF(Budget3[],Table6[[#This Row],[Months]],Budget3[$ Budget])-SUMIF(Spending!$E:$E,'Monthly Summary'!A57,Spending!$C:$C) -> 1650
A58: December | B58: =SUMIF(Budget3[],Table6[[#This Row],[Months]],Budget3[$ Budget])-SUMIF(Spending!$E:$E,'Monthly Summary'!A58,Spending!$C:$C) -> 1450

Sheet Graphs (hidden)

Sheet Payment Types (hidden)
A1: Fun | D1: January
A2: Eating Out | D2: February
A3: Tithing/FO | D3: March
A4: Phone | D4: April
A5: Medical | D5: May
A6: Debt | D6: June
A7: Gas | D7: July
A8: Utilities | D8: August
A9: Food | D9: September
A10: Misc | D10: October
A11: Mark | D11: November
A12: Rachel | D12: December
A13: Kitchen/bath
A14: Savings
A15: Clothing
A16: School
A17: Insurance/Car
A18: Gifts
A19: Rent
